[Event "10th Iberoamericano-ch 2024"]
[Site "Linares"]
[Date "2024.09.25"]
[Round "2.33"]
[White "Buiza Prieto, Eihartze"]
[Black "Labiano Hernandez, Juan"]
[Result "0-1"]
[ECO "B40"]
[WhiteElo "2056"]
[BlackElo "2398"]
[Annotator "RC"]
[PlyCount "138"]
[EventDate "2024.09.25"]
[EventType "swiss"]
[EventCountry "ESP"]
[SourceTitle "playchess.com"]
[Source "ChessBase"]
[SourceQuality "1"]
[TimeControl "5400+30"]

1. e4 {[%emt 0:00:03]} c5 {[%emt 0:00:07]} 2. Nf3 {[%emt 0:00:08]} Nc6 {[%emt 0:00:04]} 3. d4 {[%emt 0:00:27]} cxd4 {[%emt 0:00:05]} 4. Nxd4 {[%emt 0:00:07]} Nf6 {[%emt 0:00:06]} 5. Nc3 {[%emt 0:00:23]} e6 {[%emt 0:00:05]} 6. Be2 {[%emt 0:09:29]} Bb4 {[%emt 0:08:13]} 7. O-O {[%emt 0:00:45]} d6 {[%emt 0:09:53]} 8. Nxc6 {[%emt 0:31:23]} bxc6 {[%emt 0:00:02]} 9. Bd3 {[%emt 0:01:13]} e5 {[%emt 0:11:14]} 10. Ne2 {[%emt 0:06:11]} O-O {[%emt 0:05:06]} 11. c4 {[%emt 0:04:29]} Bc5 {[%emt 0:09:02]} 12. Ng3 {[%emt 0:10:22]} Rb8 {[%emt 0:10:59]} 13. Rb1 {[%emt 0:07:33]} Bg4 {[%emt 0:04:07]} 14. Qe1 {[%emt 0:02:37]} a5 {[%emt 0:07:14]} 15. Be3 {[%emt 0:02:46]} Bb4 {[%emt 0:00:32]} 16. Qc1 {[%emt 0:01:13]} d5 {[%emt 0:03:34]} 17. Bg5 {[%emt 0:03:26]} Be7 {[%emt 0:10:31]} 18. Bxf6 {[%emt 0:03:06]} Bxf6 {[%emt 0:00:02]} 19. exd5 {[%emt 0:00:45]} cxd5 {[%emt 0:00:01]} 20. cxd5 {[%emt 0:00:09]} Qxd5 {[%emt 0:00:45]} 21. Bc4 {[%emt 0:00:43]} Qd4 {[%emt 0:06:38]} 22. b3 {[%emt 0:00:42]} g6 {[%emt 0:00:43]} 23. Qe3 {[%emt 0:05:07]} Qxe3 {[%emt 0:01:21]} 24. fxe3 {[%emt 0:00:01]} Bg5 {[%emt 0:00:38]} 25. Rbe1 {[%emt 0:00:42]} Bh4 {[%emt 0:01:41]} 26. Rc1 {[%emt 0:00:41]} Rbd8 {[%emt 0:01:29]} 27. Ne4 {[%emt 0:02:31]} Bf5 {[%emt 0:01:35]} 28. Nc3 {[%emt 0:02:07]} Bg5 {[%emt 0:01:43]} 29. Rce1 {[%emt 0:02:31]} Rd2 {[%emt 0:02:41]} 30. Rf2 {[%emt 0:00:16]} Rfd8 {[%emt 0:01:35]} 31. Ree2 {[%emt 0:00:28]} Rxe2 {[%emt 0:00:19]} 32. Rxe2 {[%emt 0:00:20]} Bd3 {[%emt 0:00:26]} 33. Re1 {[%emt 0:02:09]} Bxc4 {[%emt 0:03:19]} 34. bxc4 {[%emt 0:00:01]} Rc8 {[%emt 0:00:11]} 35. Ne4 {[%emt 0:01:47]} Bh6 {[%emt 0:00:38]} 36. c5 {[%emt 0:00:53]} f5 {[%emt 0:00:21]} 37. Nd6 {[%emt 0:00:48]} Rxc5 {[%emt 0:00:10]} 38. Re2 {[%emt 0:00:24]} Bf8 {[%emt 0:01:26]} 39. Nb7 {[%emt 0:00:18]} Rb5 {[%emt 0:00:45]} 40. Nd8 {[%emt 0:00:03]} e4 {[%emt 0:00:20]} 41. Kf2 {[%emt 0:00:16]} Bc5 {[%emt 0:00:27]} 42. Ne6 {[%emt 0:00:19]} Be7 {[%emt 0:00:24]} 43. g3 {[%emt 0:00:26]} Kf7 {[%emt 0:00:08]} 44. Nd4 {[%emt 0:00:02]} Rb1 {[%emt 0:00:16]} 45. Rc2 {[%emt 0:01:17]} a4 {[%emt 0:00:35]} 46. g4 {[%emt 0:00:50]} Bh4+ {[%emt 0:00:47]} 47. Kg2 {[%emt 0:00:16]} fxg4 {[%emt 0:00:18]} 48. Rc7+ {[%emt 0:00:29]} Kg8 {[%emt 0:00:33]} 49. a3 {[%emt 0:01:05]} Rb2+ {[%emt 0:00:41]} 50. Kh1 {[%emt 0:00:34]} Bf6 {[%emt 0:00:48]} 51. Rc4 {[%emt 0:00:44]} Bg5 {[%emt 0:00:41]} 52. Rc8+ {[%emt 0:00:13]} Kf7 {[%emt 0:00:21]} 53. Rc7+ {[%emt 0:00:12]} Kg8 {[%emt 0:00:05]} 54. Rc8+ {[%emt 0:00:04]} Kg7 {[%emt 0:00:07]} 55. Ne6+ {[%emt 0:01:20]} Kf6 {[%emt 0:00:09]} 56. Nxg5 {[%emt 0:00:37]} Kxg5 {[%emt 0:00:05]} 57. Rc4 {[%emt 0:00:03]} Rb3 {[%emt 0:00:13]} 58. Rxa4 {[%emt 0:00:05]} Rxe3 {[%emt 0:00:05]} 59. Kg2 {[%emt 0:00:07]} Kf4 {[%emt 0:01:01]} 60. Ra7 {[%emt 0:00:31]} Re2+ {[%emt 0:00:12]} 61. Kg1 {[%emt 0:00:06]} h5 {[%emt 0:00:26]} 62. a4 {[%emt 0:00:14]} h4 {[%emt 0:00:42]} 63. a5 {[%emt 0:00:55]} e3 {[%emt 0:00:51]} 64. Rf7+ {[%emt 0:00:35]} Kg5 {[%emt 0:00:12]} 65. a6 {[%emt 0:00:50]} Ra2 {[%emt 0:00:10]} 66. a7 {[%emt 0:00:08]} h3 {[%emt 0:00:35]} 67. Kf1 {[%emt 0:00:08]} g3 {[%emt 0:00:10]} 68. hxg3 {[%emt 0:00:06]} h2 {[%emt 0:00:09]} 69. Rh7 {[%emt 0:00:07]} Rxa7 {[%emt 0:00:11]} 0-1

[Event "10th Iberoamericano-ch 2024"]
[Site "Linares"]
[Date "2024.09.25"]
[Round "2.34"]
[White "Follana Albelda, Lucia"]
[Black "Prado Lobo, Jonas"]
[Result "1/2-1/2"]
[ECO "C13"]
[WhiteElo "2043"]
[BlackElo "2385"]
[Annotator "TA"]
[PlyCount "28"]
[EventDate "2024.09.25"]
[EventType "swiss"]
[EventCountry "ESP"]
[SourceTitle "playchess.com"]
[Source "ChessBase"]
[SourceQuality "1"]
[TimeControl "5400+30"]

{[%evp 14,28,20,15,66,25,24,27,37,35,63,49,162,151,163,122,196]} 1. e4 {[%emt 0:03:16][%cal Be2e4,Be4e5][%mdl 32]} e6 {[%emt 0:00:06]} 2. d4 {[%emt 0:00:21]} d5 {[%emt 0:00:06]} 3. Nc3 {[%emt 0:00:07]} Nf6 {[%emt 0:00:10]} 4. Bg5 {[%emt 0:00:16]} Be7 {[%emt 0:00:24]} 5. e5 {[%emt 0:00:14]} Nfd7 {[%emt 0:00:30]} 6. h4 {[%emt 0:00:15]} h6 {[%emt 0:00:26]} 7. Bxe7 {[%emt 0:00:09]} Qxe7 {[%emt 0:00:06]} 8. f4 {[%emt 0:00:14]} O-O {[%emt 0:00:41]} ({Black should try} 8... a6 $11) 9. Qd2 {[%emt 0:09:19]} c5 {[%emt 0:00:44][%cal Bc7c5,Bc5d4][%mdl 32]} 10. Nf3 {[%emt 0:11:40]} Nc6 {[%emt 0:02:16] White has an edge.} 11. O-O-O {[%emt 0:02:17]} a6 {[%emt 0:01:06]} 12. g4 {[%emt 0:01:54][%cal Bg2g4,Bg4g5][%mdl 32]} f6 {[%emt 0:32:43] [#]} (12... Nxd4 $14 13. Nxd4 cxd4) 13. g5 $1 $18 {[%emt 0:18:41] And now gxf6 would win.} cxd4 {[%emt 0:01:41] [#]} 14. Ne2 {[%emt 0:04:39]} ({Don't do} 14. Nxd4 $6 fxe5 15. Nxc6 bxc6 16. gxh6 exf4 17. hxg7 (17. Rg1 Rf7 $11) 17... Rf7 $14 (17... Qxg7 $2 {is the wrong capture.} 18. Bb5 $18)) 14... Nc5 {[%emt 0:08:25] Weighted Error Value: White=0.04 (flawless) /Black=0.41.  Mistake:       	---       	Black=2      Inaccurate:     	White=1     	Black=1      OK:         	White=4     	Black=1      Strong:       	White=1     	---} (14... fxe5 $16 15. gxh6 Qf6) 1/2-1/2

[Event "10th Iberoamericano-ch 2024"]
[Site "Linares"]
[Date "2024.09.25"]
[Round "2.35"]
[White "Bendayan Claros, Aaron"]
[Black "Guillo Longares, Cecilia"]
[Result "1-0"]
[ECO "D95"]
[WhiteElo "2200"]
[BlackElo "2036"]
[Annotator "RC"]
[PlyCount "71"]
[EventDate "2024.09.25"]
[EventType "swiss"]
[EventCountry "ESP"]
[SourceTitle "playchess.com"]
[Source "ChessBase"]
[SourceQuality "1"]
[TimeControl "5400+30"]

1. d4 {[%emt 0:00:44]} Nf6 {[%emt 0:00:09]} 2. c4 {[%emt 0:00:09]} g6 {[%emt 0:00:11]} 3. Nc3 {[%emt 0:00:10]} d5 {[%emt 0:00:25]} 4. Nf3 {[%emt 0:00:10]} Bg7 {[%emt 0:00:28]} 5. e3 {[%emt 0:00:14]} O-O {[%emt 0:01:01]} 6. Qb3 {[%emt 0:00:11]} e6 {[%emt 0:14:32]} 7. Bd2 {[%emt 0:00:28]} a6 {[%emt 0:04:56]} 8. a4 {[%emt 0:07:12]} dxc4 {[%emt 0:10:54]} 9. Bxc4 {[%emt 0:00:12]} c5 {[%emt 0:00:45]} 10. dxc5 {[%emt 0:24:58]} Nbd7 {[%emt 0:03:58]} 11. Qa3 {[%emt 0:01:22]} Qc7 {[%emt 0:00:42]} 12. b4 {[%emt 0:05:59]} b6 {[%emt 0:01:12]} 13. Rc1 {[%emt 0:01:30]} bxc5 {[%emt 0:08:55]} 14. b5 {[%emt 0:00:14]} Bb7 {[%emt 0:00:48]} 15. O-O {[%emt 0:10:22]} Rfd8 {[%emt 0:07:14]} 16. Rfd1 {[%emt 0:00:30]} Ng4 {[%emt 0:05:31]} 17. Be2 {[%emt 0:02:46]} Bxf3 {[%emt 0:15:32]} 18. Bxf3 {[%emt 0:00:09]} Qxh2+ {[%emt 0:00:15]} 19. Kf1 {[%emt 0:00:07]} Qh4 {[%emt 0:04:51]} 20. g3 {[%emt 0:13:42]} Qh3+ {[%emt 0:00:19]} 21. Bg2 {[%emt 0:16:03]} Qh2 {[%emt 0:02:00]} 22. Be1 {[%emt 0:00:31]} Nde5 {[%emt 0:09:56]} 23. Qxc5 {[%emt 0:01:57]} Bf8 {[%emt 0:01:50]} 24. Rxd8 {[%emt 0:06:53]} Rxd8 {[%emt 0:00:06]} 25. Qc7 {[%emt 0:01:18]} Rd7 {[%emt 0:03:04]} 26. Qc8 {[%emt 0:00:08]} axb5 {[%emt 0:01:16]} 27. axb5 {[%emt 0:00:34]} Rd6 {[%emt 0:02:29]} 28. Ne4 {[%emt 0:02:46]} Rd5 {[%emt 0:00:40]} 29. b6 {[%emt 0:01:43]} Qh5 {[%emt 0:00:28]} 30. b7 {[%emt 0:01:54]} Nh2+ {[%emt 0:00:27]} 31. Kg1 {[%emt 0:00:05]} Nhf3+ {[%emt 0:00:33]} 32. Bxf3 {[%emt 0:00:30]} Nxf3+ {[%emt 0:00:31]} 33. Kg2 {[%emt 0:00:51]} Rf5 {[%emt 0:00:30]} 34. b8=Q {[%emt 0:00:35]} Nxe1+ {[%emt 0:00:31]} 35. Rxe1 {[%emt 0:00:20]} Qf3+ {[%emt 0:00:16]} 36. Kg1 {[%emt 0:00:19]} 1-0

[Event "10th Iberoamericano-ch 2024"]
[Site "Linares"]
[Date "2024.09.25"]
[Round "2.36"]
[White "Garcia Paolicchi, Raul"]
[Black "Vehi Bach, Victor Manuel"]
[Result "1/2-1/2"]
[ECO "E06"]
[WhiteElo "2034"]
[BlackElo "2191"]
[Annotator "RC"]
[PlyCount "40"]
[EventDate "2024.09.25"]
[EventType "swiss"]
[EventCountry "ESP"]
[SourceTitle "playchess.com"]
[Source "ChessBase"]
[SourceQuality "1"]
[TimeControl "5400+30"]

1. d4 {[%emt 0:00:03]} Nf6 {[%emt 0:00:20]} 2. Nf3 {[%emt 0:00:10]} e6 {[%emt 0:00:22]} 3. c4 {[%emt 0:00:16]} d5 {[%emt 0:00:34]} 4. g3 Be7 {[%emt 0:00:36]} 5. Bg2 {[%emt 0:00:37]} O-O {[%emt 0:00:00]} 6. O-O {[%emt 0:00:12]} a5 {[%emt 0:00:18]} 7. Qc2 {[%emt 0:00:22]} Nc6 {[%emt 0:01:23]} 8. a3 {[%emt 0:00:42]} dxc4 {[%emt 0:02:47]} 9. Qxc4 {[%emt 0:01:22]} a4 {[%emt 0:00:39]} 10. Nc3 {[%emt 0:03:25]} Bd7 {[%emt 0:09:14]} 11. Bf4 {[%emt 0:05:10]} Nh5 {[%emt 0:00:30]} 12. Rad1 {[%emt 0:00:30]} Nxf4 {[%emt 0:00:30]} 13. gxf4 {[%emt 0:01:39]} Na5 {[%emt 0:23:21]} 14. Qd3 {[%emt 0:06:01]} c6 15. Ne5 {[%emt 0:08:29]} b5 {[%emt 0:09:52]} 16. Ne4 {[%emt 0:00:30]} Be8 {[%emt 0:25:39]} 17. Qc3 {[%emt 0:09:41]} f6 {[%emt 0:03:46]} 18. Nd3 {[%emt 0:00:30]} Qc7 {[%emt 0:00:30]} 19. Ndc5 {[%emt 0:00:30]} Bf7 {[%emt 0:00:30]} 20. e3 Nc4 {[%emt 0:03:03]} 1/2-1/2

[Event "10th Iberoamericano-ch 2024"]
[Site "Linares"]
[Date "2024.09.25"]
[Round "2.37"]
[White "Perez Ruiz, Santiago"]
[Black "Rodriguez Lopez, Rafael"]
[Result "0-1"]
[ECO "E01"]
[WhiteElo "2025"]
[BlackElo "2162"]
[Annotator "RC"]
[PlyCount "76"]
[EventDate "2024.09.25"]
[EventType "swiss"]
[EventCountry "ESP"]
[SourceTitle "playchess.com"]
[Source "ChessBase"]
[SourceQuality "1"]
[TimeControl "5400+30"]

1. d4 {[%emt 0:00:04]} Nf6 {[%emt 0:00:07]} 2. c4 {[%emt 0:00:12]} e6 {[%emt 0:00:09]} 3. g3 {[%emt 0:00:30]} d5 {[%emt 0:00:20]} 4. Bg2 {[%emt 0:00:43]} Bb4+ {[%emt 0:00:05]} 5. Nd2 {[%emt 0:00:54]} O-O {[%emt 0:00:13]} 6. Qc2 {[%emt 0:05:53]} b6 {[%emt 0:01:53]} 7. a3 {[%emt 0:03:37]} Be7 {[%emt 0:00:17]} 8. Ngf3 {[%emt 0:02:26]} Bb7 {[%emt 0:00:19]} 9. Ne5 {[%emt 0:01:53]} c5 {[%emt 0:03:31]} 10. dxc5 {[%emt 0:01:03]} bxc5 {[%emt 0:02:38]} 11. O-O {[%emt 0:00:47]} Qc7 {[%emt 0:01:31]} 12. Ndf3 {[%emt 0:00:51]} Bd6 {[%emt 0:00:38]} 13. Nd3 {[%emt 0:13:53]} e5 {[%emt 0:00:47]} 14. Nh4 {[%emt 0:02:58]} e4 {[%emt 0:06:08]} 15. Ne1 {[%emt 0:03:00]} d4 {[%emt 0:00:53]} 16. Bg5 {[%emt 0:02:47]} Nbd7 {[%emt 0:00:22]} 17. Nf5 {[%emt 0:03:10]} Rfe8 {[%emt 0:02:42]} 18. Nxd6 {[%emt 0:01:01]} Qxd6 {[%emt 0:00:03]} 19. b4 {[%emt 0:01:29]} h6 {[%emt 0:05:54]} 20. Bf4 {[%emt 0:01:56]} Ne5 {[%emt 0:00:40]} 21. bxc5 {[%emt 0:01:41]} Qxc5 {[%emt 0:00:15]} 22. Rb1 {[%emt 0:00:08]} Bc6 {[%emt 0:00:23]} 23. Qc1 {[%emt 0:05:41]} a5 {[%emt 0:05:55]} 24. f3 {[%emt 0:07:36]} Ng6 {[%emt 0:08:11]} 25. fxe4 {[%emt 0:02:53]} Nxf4 {[%emt 0:01:50]} 26. Rxf4 {[%emt 0:01:44]} d3+ {[%emt 0:02:09]} 27. e3 {[%emt 0:07:32]} Rad8 {[%emt 0:00:22]} 28. Rf5 {[%emt 0:02:52]} Qa7 {[%emt 0:01:20]} 29. Qd2 {[%emt 0:00:22]} Bxe4 {[%emt 0:03:30]} 30. Rxa5 {[%emt 0:00:34]} Qc7 {[%emt 0:02:12]} 31. Nf3 {[%emt 0:06:02]} Ng4 {[%emt 0:08:00]} 32. Re1 {[%emt 0:01:30]} Bxf3 {[%emt 0:01:44]} 33. Bxf3 {[%emt 0:00:10]} Nxe3 {[%emt 0:01:29]} 34. Bd5 {[%emt 0:03:29]} Nxc4 {[%emt 0:02:03]} 35. Rxe8+ {[%emt 0:01:40]} Rxe8 {[%emt 0:00:03]} 36. Bxc4 {[%emt 0:00:23]} Qxc4 {[%emt 0:00:08]} 37. Rf5 {[%emt 0:01:06]} Qd4+ {[%emt 0:00:41]} 38. Kg2 {[%emt 0:04:42]} Re2+ {[%emt 0:00:05]} 0-1

[Event "10th Iberoamericano-ch 2024"]
[Site "Linares"]
[Date "2024.09.25"]
[Round "2.38"]
[White "Rocha, Maximiliano"]
[Black "Zapata Campos, Lidia Karen"]
[Result "1-0"]
[ECO "B28"]
[WhiteElo "2156"]
[BlackElo "2029"]
[Annotator "RC"]
[PlyCount "76"]
[EventDate "2024.09.25"]
[EventType "swiss"]
[EventCountry "ESP"]
[SourceTitle "playchess.com"]
[Source "ChessBase"]
[SourceQuality "1"]
[TimeControl "5400+30"]

1. e4 {[%emt 0:03:05]} c5 {[%emt 0:00:07]} 2. Nf3 {[%emt 0:00:08]} a6 {[%emt 0:00:35]} 3. c3 {[%emt 0:00:41]} Nf6 {[%emt 0:00:29]} 4. e5 {[%emt 0:00:27]} Nd5 {[%emt 0:00:03]} 5. d4 {[%emt 0:01:51]} cxd4 {[%emt 0:03:45]} 6. Bc4 {[%emt 0:01:48]} Nb6 {[%emt 0:03:16]} 7. Bb3 {[%emt 0:00:02]} d5 {[%emt 0:00:30]} 8. Qxd4 {[%emt 0:10:26]} Nc6 {[%emt 0:01:50]} 9. Qf4 {[%emt 0:01:20]} h6 {[%emt 0:03:06]} 10. Be3 {[%emt 0:02:26]} e6 {[%emt 0:00:47]} 11. Nbd2 {[%emt 0:02:41]} g5 {[%emt 0:03:27]} 12. Qg3 {[%emt 0:01:29]} Nd7 {[%emt 0:02:30]} 13. O-O {[%emt 0:06:32]} b5 {[%emt 0:06:33]} 14. Nd4 {[%emt 0:04:31]} Ndxe5 {[%emt 0:03:18]} 15. f4 {[%emt 0:01:37]} gxf4 {[%emt 0:01:14]} 16. Bxf4 {[%emt 0:03:04]} Nxd4 {[%emt 0:01:00]} 17. cxd4 {[%emt 0:01:58]} Ng6 {[%emt 0:01:12]} 18. Rae1 {[%emt 0:04:40]} Be7 {[%emt 0:06:39]} 19. Bc7 {[%emt 0:14:38]} Qd7 {[%emt 0:01:03]} 20. Rxf7 {[%emt 0:10:25]} Kxf7 {[%emt 0:06:47]} 21. Rf1+ {[%emt 0:00:06]} Bf6 {[%emt 0:01:15]} 22. Be5 {[%emt 0:00:24]} Nxe5 {[%emt 0:06:35]} 23. dxe5 {[%emt 0:00:02]} Ke8 {[%emt 0:00:45]} 24. exf6 {[%emt 0:01:00]} Rf8 {[%emt 0:04:04]} 25. Bd1 {[%emt 0:04:05]} Bb7 {[%emt 0:02:05]} 26. Bg4 {[%emt 0:02:38]} Kd8 {[%emt 0:08:36]} 27. Nb3 {[%emt 0:00:07]} Qc7 {[%emt 0:01:46]} 28. Qh4 {[%emt 0:00:39]} Qb6+ {[%emt 0:11:30]} 29. Kh1 {[%emt 0:00:49]} Qe3 {[%emt 0:13:57]} 30. Bxe6 {[%emt 0:17:36]} Qxe6 {[%emt 0:03:01]} 31. Nc5 {[%emt 0:00:02]} Qe3 {[%emt 0:00:54]} 32. Nxb7+ {[%emt 0:04:34]} Kc7 {[%emt 0:01:44]} 33. Na5 {[%emt 0:00:16]} Rae8 {[%emt 0:00:52]} 34. h3 {[%emt 0:00:17]} Re4 {[%emt 0:00:31]} 35. Qh5 {[%emt 0:00:26]} Qe2 {[%emt 0:00:43]} 36. Qf5 {[%emt 0:00:58]} Re5 37. Qf4 Qe3 38. Qg4 Rg5 1-0